bitfinex/quotes_BTCUSD_20250526
["timestamp","ask_amount","ask_price","bid_price","bid_amount"]
[1748290451159,0.006,109210.0,109200.0,2.61724759]
[1748290451374,0.01515591,109210.0,109200.0,2.61724759]
[1748290451574,0.01515599,109210.0,109200.0,2.63178844]
[1748290451776,0.006,109210.0,109200.0,2.63178844]
[1748290451956,0.002,109210.0,109200.0,2.63178844]
[1748290453385,0.002,109210.0,109200.0,2.63378844]
[1748290453609,0.002,109210.0,109200.0,2.68871844]
[1748290454264,0.01830855,109230.0,109220.0,1.13033811]
[1748290454478,0.01830855,109230.0,109220.0,2.04209967]
[1748290454479,0.04577242,109230.0,109220.0,2.04209967]
[1748290454691,0.04577242,109230.0,109220.0,2.05567926]
[1748290455121,0.0457731,109230.0,109220.0,2.05567926]
[1748290455334,0.21971866,109230.0,109220.0,2.05567943]
[1748290455544,0.22186783,109230.0,109220.0,2.07021834]
[1748290455700,0.22186783,109230.0,109220.0,2.07937366]
[1748290455914,0.22386783,109230.0,109220.0,2.07937366]
[1748290456470,0.23302282,109230.0,109220.0,2.07937366]
[1748290456838,0.23302282,109230.0,109220.0,2.08837699]
[1748290460510,0.02245814,109230.0,109220.0,2.11207308]
[1748290460735,0.03161271,109230.0,109220.0,2.11207308]
[1748290460949,0.01330357,109230.0,109220.0,2.11207308]
[1748290461174,0.00414917,109230.0,109220.0,2.66082808]
[1748290461846,0.03682173,109250.0,109240.0,0.60643922]
[1748290462069,0.23819447,109250.0,109240.0,2.75164357]
[1748290462255,0.23819447,109250.0,109240.0,2.7607973]
[1748290462746,0.22904183,109250.0,109240.0,2.75164357]
[1748290463465,0.22904183,109250.0,109240.0,2.45100357]
[1748290463693,0.22904183,109250.0,109240.0,2.73387443]
[1748290464836,0.22904183,109250.0,109240.0,2.75390794]
[1748290465061,0.21073579,109250.0,109240.0,2.13871655]
[1748290465296,0.24253579,109250.0,109240.0,1.89052155]
[1748290465499,0.24253579,109250.0,109240.0,1.74416155]
[1748290466062,0.24253579,109250.0,109240.0,1.72965069]
[1748290467059,0.24253579,109250.0,109240.0,1.57545069]
[1748290468825,0.24253579,109250.0,109240.0,1.564571]
[1748290471298,0.24196218,109250.0,109240.0,1.564571]
[1748290471508,0.24196218,109250.0,109240.0,1.57545069]
[1748290477929,0.38832218,109250.0,109240.0,1.57545069]
[1748290479872,0.21016218,109250.0,109240.0,2.12420569]
[1748290480073,0.35652218,109250.0,109240.0,2.31644295]
[1748290480289,0.21016218,109250.0,109240.0,2.33244295]
[1748290480494,0.21016218,109250.0,109240.0,2.34159702]
[1748290480694,0.21016218,109250.0,109240.0,2.32559702]
[1748290480910,0.21016218,109250.0,109240.0,2.13699101]
[1748290480911,0.20100895,109250.0,109240.0,2.13699101]
[1748290481134,0.20100895,109250.0,109240.0,2.32007412]
[1748290482118,0.20100895,109250.0,109240.0,2.12783686]
[1748290483045,0.20100895,109250.0,109240.0,2.32007404]
[1748290483445,0.20100895,109250.0,109240.0,2.31091997]
[1748290484073,0.20100895,109250.0,109240.0,1.03032686]
[1748290484281,0.23220895,109250.0,109240.0,1.57908186]
[1748290485660,0.23220895,109250.0,109240.0,2.12783686]
[1748290486996,0.23220895,109250.0,109240.0,1.57908186]
[1748290487449,0.32175451,109250.0,109240.0,1.04290486]
[1748290487870,0.32175451,109250.0,109240.0,0.13084586]
[1748290488080,0.61345451,109250.0,109240.0,0.01451086]
[1748290488957,0.61345451,109250.0,109230.0,0.0109284]
[1748290488958,0.22343709,109240.0,109230.0,0.0109284]
[1748290489193,0.45934265,109240.0,109230.0,1.0649214]
[1748290489405,0.45934265,109240.0,109230.0,0.8996834]
[1748290489584,0.45934265,109240.0,109230.0,1.2337314]
[1748290489789,0.48681065,109240.0,109230.0,1.2337314]
[1748290490385,0.48681065,109240.0,109230.0,1.222803]
[1748290492297,0.34045065,109240.0,109230.0,1.222803]
[1748290492501,0.48681065,109240.0,109230.0,1.222803]
[1748290499284,0.34045065,109240.0,109230.0,1.222803]
[1748290499502,0.48685065,109240.0,109230.0,1.222803]
[1748290500692,0.77855065,109240.0,109230.0,1.222803]
[1748290501442,0.77855065,109240.0,109230.0,0.627408]
[1748290501643,0.77855065,109240.0,109230.0,0.34]
[1748290506204,0.78155065,109240.0,109230.0,0.34]
[1748290506630,0.49185065,109240.0,109230.0,0.34]
[1748290509986,0.18309988,109230.0,109210.0,0.01091254]
[1748290510271,0.45971786,109220.0,109210.0,0.35106171]
[1748290510481,0.45971786,109220.0,109210.0,1.57563271]
[1748290514397,0.31331786,109220.0,109210.0,1.57563271]
[1748290514612,0.45971786,109220.0,109210.0,1.57563271]
[1748290518519,0.45971786,109220.0,109210.0,1.59014357]
[1748290518735,0.44421786,109220.0,109210.0,1.59014357]
[1748290518947,0.1922723,109220.0,109210.0,1.62114357]
[1748290519163,0.3386723,109220.0,109210.0,1.62114357]
[1748290520027,0.3386723,109220.0,109210.0,1.61023103]
[1748290520510,0.1922723,109220.0,109210.0,1.61023103]
[1748290520745,0.3386723,109220.0,109210.0,1.61023103]
[1748290522182,0.1922723,109220.0,109210.0,1.61023103]
[1748290522845,0.3386723,109220.0,109210.0,1.61023103]
[1748290523532,0.3386723,109220.0,109210.0,1.68023103]
[1748290526972,0.3386723,109220.0,109210.0,1.66572017]
[1748290533825,0.3386723,109220.0,109210.0,1.64972017]
[1748290534151,0.3386723,109220.0,109210.0,1.66430374]
[1748290535444,0.3386723,109220.0,109210.0,1.59430374]
[1748290537940,0.3386723,109220.0,109210.0,1.57930374]
[1748290538363,0.3386723,109220.0,109210.0,1.61220374]
[1748290541499,0.3386723,109220.0,109210.0,1.57930374]
[1748290542932,0.1922723,109220.0,109210.0,1.57930374]
[1748290543115,0.3387123,109220.0,109210.0,1.57930374]
[1748290543322,0.3387123,109220.0,109210.0,1.56472017]
[1748290545691,0.3387123,109220.0,109210.0,1.63472017]
[1748290550122,0.3387123,109220.0,109210.0,1.90817845]
[1748290550870,0.20146788,109220.0,109210.0,2.13146844]
[1748290551083,0.35702362,109220.0,109210.0,2.13146844]
[1748290551966,0.21977945,109220.0,109210.0,2.14062494]
[1748290552171,0.21062387,109220.0,109210.0,2.55173158]
[1748290552728,0.20146821,109220.0,109210.0,2.54257508]
[1748290552941,0.20146821,109220.0,109210.0,2.13146844]
[1748290553348,0.20146821,109220.0,109210.0,2.14062494]
[1748290554802,0.20146821,109220.0,109210.0,1.93917845]
[1748290555048,0.19231247,109220.0,109210.0,1.93917845]
[1748290555246,0.19231247,109220.0,109210.0,2.12231186]
[1748290557337,0.19231247,109220.0,109210.0,2.14062494]
[1748290557772,0.19231247,109220.0,109210.0,2.13146844]
[1748290557987,0.19231247,109220.0,109210.0,2.12231186]
[1748290558180,0.19231247,109220.0,109210.0,2.13146853]
[1748290559046,0.18303533,109220.0,109210.0,1.93917845]
[1748290559932,0.18303533,109220.0,109210.0,2.14062494]
[1748290560154,0.19219116,109220.0,109210.0,2.14062494]
[1748290560440,0.19219116,109220.0,109210.0,2.14062503]
[1748290560698,0.19219116,109220.0,109210.0,2.14978144]
[1748290561130,0.19219116,109220.0,109210.0,2.13146853]
[1748290561356,0.19219116,109220.0,109210.0,2.14978161]
[1748290562053,0.19219116,109220.0,109210.0,2.15893802]
[1748290562297,0.01835048,109220.0,109210.0,2.5792004]
[1748290562549,0.00915432,109230.0,109220.0,0.58218311]
[1748290562789,0.05030242,109250.0,109240.0,0.53223726]
[1748290563015,0.06860771,109250.0,109240.0,2.80075446]
[1748290563199,0.00915206,109260.0,109250.0,0.5821253]
[1748290563455,0.0111513,109270.0,109260.0,0.3716]
[1748290563677,0.0111513,109270.0,109260.0,2.25828831]
[1748290563678,0.20333562,109270.0,109260.0,2.25828831]
[1748290563895,0.20333562,109270.0,109260.0,2.58773791]
[1748290564558,0.18553006,109270.0,109260.0,2.39553592]
[1748290564774,0.18553006,109270.0,109260.0,2.41006814]
[1748290565019,0.18553006,109270.0,109260.0,2.59311774]
[1748290565439,0.18553006,109270.0,109260.0,2.60227013]
[1748290565659,0.19468153,109270.0,109260.0,2.65217432]
[1748290565879,0.19468153,109270.0,109260.0,2.63387013]
[1748290566098,0.19568153,109270.0,109260.0,1.96639677]
[1748290566335,0.19568153,109270.0,109260.0,1.96274355]
[1748290566551,0.19568153,109270.0,109260.0,1.97189569]
[1748290566976,0.2139843,109270.0,109260.0,1.98104775]
[1748290567187,0.2149843,109270.0,109260.0,1.98104775]
[1748290567578,0.2149843,109270.0,109260.0,1.95359133]
[1748290567836,0.20583308,109270.0,109260.0,1.91283911]
[1748290568037,0.20583308,109270.0,109260.0,1.9219915]
[1748290569195,0.20583308,109270.0,109260.0,1.93114381]
[1748290569480,0.20583308,109270.0,109260.0,1.94774381]
[1748290569683,0.20583275,109270.0,109260.0,1.98104784]
[1748290569836,0.21498439,109270.0,109260.0,1.98104784]
[1748290570044,0.0227994,109270.0,109260.0,2.52859003]
[1748290570273,0.0227994,109270.0,109260.0,2.63267644]
[1748290570274,0.00449721,109270.0,109260.0,2.63267644]
[1748290570474,0.03195028,109270.0,109260.0,2.48627644]
[1748290570683,0.0319502,109270.0,109260.0,2.63263644]
[1748290570882,0.02179906,109270.0,109260.0,2.63263644]
[1748290571087,0.21961886,109280.0,109270.0,0.57247639]
[1748290571295,0.03675138,109280.0,109270.0,2.61095347]
[1748290571495,0.21976748,109280.0,109270.0,2.61095347]
[1748290572712,0.21976748,109280.0,109270.0,2.60280233]
[1748290573818,0.21976748,109280.0,109270.0,2.60480233]
[1748290574062,0.03675138,109280.0,109270.0,2.61395347]
[1748290574259,0.21976748,109280.0,109270.0,2.61395347]
[1748290574677,0.20146663,109280.0,109270.0,1.56635819]
[1748290574883,0.20146663,109280.0,109270.0,1.86655819]
[1748290575090,0.20146663,109280.0,109270.0,1.87743703]
[1748290575722,0.20146663,109280.0,109270.0,1.57723703]
[1748290575925,0.21656663,109280.0,109270.0,1.87743703]
[1748290576099,0.20146663,109280.0,109270.0,2.42497922]
[1748290576749,0.20146663,109280.0,109270.0,2.41410038]
[1748290583150,0.20146663,109280.0,109270.0,2.41406038]
[1748290583359,0.37858663,109280.0,109270.0,0.678816]
[1748290583569,0.37858663,109280.0,109270.0,1.22635819]
[1748290584004,0.46813219,109280.0,109270.0,1.56635819]
[1748290584866,0.46813219,109280.0,109270.0,1.018816]
[1748290585061,0.46813219,109280.0,109270.0,1.56635819]
[1748290585396,0.46813219,109280.0,109270.0,1.56435819]
[1748290585608,0.46813219,109280.0,109270.0,1.56335819]
[1748290590009,0.47668657,109280.0,109270.0,1.56335819]
[1748290593602,0.56620808,109280.0,109270.0,1.02650819]
[1748290593810,0.47668657,109280.0,109270.0,0.84996619]
[1748290594015,0.47668657,109280.0,109270.0,0.86084503]
[1748290594438,0.47668657,109280.0,109270.0,0.85034303]
[1748290595856,0.47668657,109280.0,109270.0,0.83946419]
[1748290599579,0.33036657,109280.0,109270.0,0.83946419]
[1748290599785,0.47668657,109280.0,109270.0,0.83946419]
[1748290604032,0.33036657,109280.0,109270.0,0.83946419]
[1748290604209,0.47668657,109280.0,109270.0,0.83946419]
[1748290605480,0.47668657,109280.0,109270.0,0.83879094]
[1748290606119,0.47668657,109280.0,109270.0,0.83811754]
[1748290606772,0.46813219,109280.0,109270.0,0.83744414]
[1748290609364,0.46813219,109280.0,109270.0,0.82716219]
[1748290609573,0.47668979,109280.0,109270.0,0.82716219]
[1748290612028,0.47668979,109280.0,109260.0,0.01087884]
[1748290612029,0.19218432,109270.0,109260.0,0.01087884]
[1748290612260,1.30621207,109270.0,109260.0,0.01087884]
[1748290612475,1.01451207,109270.0,109260.0,0.01087884]
[1748290612690,1.02905292,109270.0,109260.0,0.01087884]
[1748290612899,1.11857443,109270.0,109260.0,0.01087884]
[1748290613347,1.12713203,109270.0,109260.0,0.01087884]
[1748290613992,0.2013724,109250.0,109240.0,0.002]
[1748290614245,0.46863796,109250.0,109240.0,0.002]
[1748290615526,0.46963796,109250.0,109240.0,0.002]
[1748290615751,0.55915947,109250.0,109240.0,0.002]
[1748290616173,0.56015947,109250.0,109240.0,0.002]
[1748290616832,1.10770166,109250.0,109240.0,0.002]
[1748290617289,0.33286733,109250.0,109240.0,0.002]
[1748290617518,0.63310733,109250.0,109240.0,0.54954219]
[1748290617736,0.47922733,109250.0,109240.0,0.54954219]
[1748290617946,0.47067796,109250.0,109240.0,0.54954219]
[1748290618185,0.47067796,109250.0,109240.0,0.002]
[1748290618627,0.56019947,109250.0,109240.0,0.002]
[1748290620270,0.32431796,109250.0,109240.0,0.002]
[1748290620603,0.47067796,109250.0,109240.0,0.002]
[1748290623073,0.49814696,109250.0,109240.0,0.002]
[1748290623420,0.35178696,109250.0,109240.0,0.002]
[1748290623621,0.29291796,109250.0,109240.0,1.14653219]
[1748290623830,0.43927796,109250.0,109240.0,0.95705519]
[1748290624721,0.43927796,109250.0,109240.0,0.81627319]
[1748290625898,0.43927796,109250.0,109240.0,0.84807319]
[1748290626123,0.43927796,109250.0,109240.0,0.81627319]
[1748290632328,0.29291796,109250.0,109240.0,0.81627319]
[1748290632529,0.43927796,109250.0,109240.0,0.81627319]
[1748290633138,0.43927796,109250.0,109240.0,0.83217319]
[1748290633886,0.43927796,109250.0,109240.0,0.81627319]
[1748290634459,0.43927796,109250.0,109240.0,0.84847319]
[1748290636792,0.46673996,109250.0,109240.0,0.84847319]
[1748290639607,0.32037996,109250.0,109240.0,0.81627319]
[1748290639800,0.46677996,109250.0,109240.0,0.81627319]
[1748290640404,0.49797996,109250.0,109240.0,0.002]
[1748290641094,0.50653998,109250.0,109240.0,0.002]
[1748290642995,1.05408217,109250.0,109240.0,0.002]
[1748290643456,0.50653998,109250.0,109240.0,0.002]
[1748290643653,0.59606149,109250.0,109240.0,0.002]
[1748290654291,0.44966149,109250.0,109240.0,0.002]
[1748290654506,0.59606149,109250.0,109240.0,0.002]
[1748290660041,0.74994149,109250.0,109240.0,0.002]
[1748290661550,0.78090995,109250.0,109240.0,0.002]
[1748290662858,0.52898844,109250.0,109240.0,0.54954219]
[1748290663070,0.66018844,109250.0,109240.0,0.54954219]
[1748290664890,0.67598844,109250.0,109240.0,0.002]
[1748290667255,0.64501998,109250.0,109240.0,0.002]
[1748290669129,0.48281998,109250.0,109240.0,0.54954219]
[1748290669338,0.62921998,109250.0,109240.0,0.54954219]
[1748290672460,0.62921998,109250.0,109240.0,0.002]
[1748290674369,0.47533998,109250.0,109240.0,0.002]
[1748290674543,0.49153998,109250.0,109240.0,0.002]
[1748290674755,0.50673998,109250.0,109240.0,0.002]
[1748290675111,0.59110846,109250.0,109240.0,0.002]
[1748290675424,0.59010846,109250.0,109240.0,0.002]
[1748290675854,0.59210846,109250.0,109240.0,0.002]
[1748290676390,0.50673998,109250.0,109240.0,0.002]
[1748290676827,0.50873998,109250.0,109240.0,0.002]
[1748290677036,0.49353998,109250.0,109240.0,0.002]
[1748290680414,0.52451547,109250.0,109240.0,0.002]
[1748290680629,0.50831547,109250.0,109240.0,0.002]
[1748290681991,0.50831547,109250.0,109240.0,0.54954219]
[1748290685277,0.36191547,109250.0,109240.0,1.16177119]
[1748290685476,0.33445347,109250.0,109240.0,1.16177119]
[1748290685678,0.48085347,109250.0,109240.0,1.16177119]
[1748290686319,0.48085347,109250.0,109240.0,1.17265003]
[1748290687906,0.48085347,109250.0,109240.0,1.16177119]
[1748290688155,0.33445347,109250.0,109240.0,1.70931338]
[1748290688376,0.32589345,109250.0,109240.0,2.04931338]
[1748290688585,0.47229345,109250.0,109240.0,2.04931338]
[1748290688796,0.2053724,109250.0,109240.0,2.04931338]
[1748290688965,0.1017724,109250.0,109240.0,2.04931338]
[1748290689192,0.28483876,109250.0,109240.0,2.04931338]
[1748290689317,0.3031448,109250.0,109240.0,2.0638456]
[1748290691009,0.2013724,109250.0,109240.0,2.26161253]
[1748290691251,0.18303285,109270.0,109260.0,0.3719]
[1748290691447,0.18303285,109270.0,109260.0,0.91944219]
[1748290691567,0.18303285,109270.0,109260.0,1.59323819]
[1748290693339,0.18403285,109270.0,109260.0,1.59323819]
[1748290694120,0.18503285,109270.0,109260.0,1.59323819]
[1748290700827,0.18503285,109270.0,109260.0,1.045696]
[1748290701153,0.18503285,109270.0,109260.0,1.56133819]
[1748290701324,0.18503285,109270.0,109260.0,1.59303819]
[1748290705790,0.27457841,109270.0,109260.0,1.56133819]
[1748290705998,0.27457841,109270.0,109260.0,1.43239419]
[1748290706830,0.29037841,109270.0,109260.0,1.43239419]
[1748290706975,0.30607841,109270.0,109260.0,1.43239419]
[1748290707588,0.59777841,109270.0,109260.0,1.43239419]
[1748290708854,0.59777841,109270.0,109260.0,0.88754219]
[1748290709063,0.59777841,109270.0,109260.0,0.54754219]
[1748290709264,0.22370191,109260.0,109250.0,0.8984501]
[1748290709476,0.42810747,109260.0,109250.0,1.3621331]
[1748290710001,0.42810747,109260.0,109250.0,1.1946271]
[1748290710421,0.45960747,109260.0,109250.0,1.03066319]
[1748290710621,0.45960747,109260.0,109250.0,1.00278719]
[1748290710970,0.45960747,109260.0,109250.0,0.88754219]
[1748290711177,0.45960747,109260.0,109250.0,1.19247719]
[1748290713651,0.75130747,109260.0,109250.0,1.19247719]
[1748290714994,0.71980747,109260.0,109250.0,1.19247719]
[1748290716609,0.71980747,109260.0,109250.0,1.2033851]
[1748290717035,0.71980747,109260.0,109250.0,0.65584291]
[1748290717248,0.71980747,109260.0,109250.0,1.2033851]
[1748290718611,0.71980747,109260.0,109250.0,0.65584291]
[1748290718814,0.71980747,109260.0,109250.0,1.2033851]
[1748290726282,0.73550747,109260.0,109250.0,1.2033851]
[1748290726492,0.75180747,109260.0,109250.0,1.2033851]
[1748290729439,0.75180747,109260.0,109250.0,1.1816421]
[1748290729863,0.77927047,109260.0,109250.0,1.1816421]
[1748290730932,0.77927047,109260.0,109250.0,0.35090791]
[1748290731136,0.77927047,109260.0,109250.0,0.8984501]
[1748290731319,0.48757047,109260.0,109250.0,0.88754219]
[1748290731732,0.48757047,109260.0,109250.0,0.34]
[1748290731983,0.48757047,109260.0,109250.0,0.88754219]
[1748290732817,0.49654786,109260.0,109250.0,0.88754219]
[1748290733524,0.22341951,109250.0,109240.0,0.02744013]
[1748290733800,0.22341951,109250.0,109240.0,0.01290791]
[1748290733801,0.86050726,109250.0,109240.0,0.01290791]
[1748290734018,0.31296507,109250.0,109240.0,0.01290791]
[1748290734401,0.32152909,109250.0,109240.0,0.01290791]
[1748290734818,0.32152909,109250.0,109240.0,0.01390791]
[1748290735021,0.4110506,109250.0,109240.0,0.003]
[1748290735227,0.4110506,109250.0,109240.0,0.002]
[1748290738418,0.44199414,109250.0,109240.0,0.002]
[1748290739034,0.35247263,109250.0,109240.0,0.002]
[1748290739254,0.35245808,109250.0,109240.0,0.002]
[1748290739605,0.35245808,109250.0,109240.0,0.54954219]
[1748290739805,0.32125808,109250.0,109240.0,0.54954219]
[1748290740010,0.45906861,109250.0,109240.0,0.54954219]
[1748290740254,0.31270861,109250.0,109240.0,0.54954219]
[1748290740432,0.45906861,109250.0,109240.0,0.54954219]
[1748290741172,0.42812507,109250.0,109240.0,0.54954219]
[1748290742134,0.45559107,109250.0,109240.0,0.54954219]
[1748290747712,0.48699107,109250.0,109240.0,0.002]
[1748290753691,0.49554054,109250.0,109240.0,0.002]
[1748290761915,1.04308273,109250.0,109240.0,0.002]
[1748290762174,1.05308273,109250.0,109240.0,0.002]
[1748290762370,1.14260424,109250.0,109240.0,0.002]
[1748290763170,1.14360424,109250.0,109240.0,0.002]
[1748290763389,1.15814509,109250.0,109240.0,0.002]
[1748290763577,1.15914509,109250.0,109240.0,0.002]
[1748290764441,0.6116029,109250.0,109240.0,0.002]
[1748290764647,1.15914509,109250.0,109240.0,0.002]
[1748290766300,1.22234205,109250.0,109240.0,0.002]
[1748290766946,0.23380927,109230.0,109220.0,0.002]
[1748290767152,0.71307634,109230.0,109220.0,0.002]
[1748290767773,0.72162581,109230.0,109220.0,0.002]
[1748290768149,0.72167547,109230.0,109220.0,0.004]
[1748290768769,0.74915047,109230.0,109220.0,0.004]
[1748290769552,0.74915047,109230.0,109220.0,0.006]
[1748290769763,0.65962896,109230.0,109220.0,0.006]
[1748290770779,0.64332896,109230.0,109220.0,0.006]
[1748290771202,0.48082896,109230.0,109220.0,0.006]
[1748290771360,0.62726896,109230.0,109220.0,0.55354219]
[1748290772140,0.62726896,109230.0,109220.0,0.54954219]
[1748290772339,0.71153569,109230.0,109220.0,0.54954219]
[1748290774561,0.41129569,109230.0,109220.0,0.54954219]
[1748290774773,0.55769569,109230.0,109220.0,0.54954219]
[1748290776521,0.58989569,109230.0,109220.0,0.54954219]
[1748290778885,0.57369569,109230.0,109220.0,0.54954219]
[1748290781538,0.57369569,109230.0,109220.0,0.54886796]
[1748290784144,0.55769569,109230.0,109220.0,0.54886796]
[1748290784350,0.57319569,109230.0,109220.0,0.54886796]
[1748290785235,0.55769569,109230.0,109220.0,0.54886796]
[1748290788074,0.57319569,109230.0,109220.0,0.54886796]
[1748290790401,0.58889569,109230.0,109220.0,0.54886796]
[1748290791030,0.58889569,109230.0,109220.0,0.00132577]
[1748290794464,0.32702896,109230.0,109220.0,0.58116796]
[1748290794687,0.50920387,109230.0,109220.0,0.58116796]
[1748290794900,0.50920387,109230.0,109220.0,0.68490596]
[1748290795105,0.50920387,109230.0,109220.0,0.68966696]
[1748290795529,0.5006544,109230.0,109220.0,0.68966696]
[1748290795943,0.5006544,109230.0,109220.0,0.70057487]
[1748290796576,0.5006544,109230.0,109220.0,0.59207587]
[1748290798157,0.43740449,109230.0,109220.0,0.59207587]
[1748290798450,0.43740449,109230.0,109220.0,0.69859987]
[1748290798665,0.43740449,109230.0,109220.0,0.59207587]
[1748290800335,0.43740449,109230.0,109220.0,0.58116796]
[1748290800539,0.44597321,109230.0,109220.0,0.58116796]
[1748290803500,0.44597321,109230.0,109220.0,0.54886796]
[1748290805471,0.44597321,109230.0,109220.0,0.58026796]
[1748290805706,0.29957321,109230.0,109220.0,0.58026796]
[1748290806156,0.44597321,109230.0,109220.0,0.58026796]
[1748290806371,0.44597321,109230.0,109220.0,1.25406396]
[1748290806593,0.43740449,109230.0,109220.0,1.25406396]
[1748290806841,0.43740449,109230.0,109220.0,0.58026796]
[1748290807062,0.43740449,109230.0,109220.0,0.03272577]
[1748290807277,0.43740449,109230.0,109220.0,0.54886796]
[1748290808794,0.46980449,109230.0,109220.0,0.54886796]
[1748290809064,0.46237219,109230.0,109220.0,0.54886796]
[1748290809329,0.44597219,109230.0,109220.0,0.54886796]
[1748290809932,0.50647345,109230.0,109220.0,0.54886796]
[1748290810376,0.49790575,109230.0,109220.0,0.54886796]
[1748290810600,0.43740449,109230.0,109220.0,0.54886796]
[1748290810826,0.43740449,109230.0,109220.0,0.00132577]
[1748290811049,0.46860449,109230.0,109220.0,0.00132577]
[1748290812020,0.47717315,109230.0,109220.0,0.00132577]
[1748290812251,0.54642923,109230.0,109220.0,0.00132577]
[1748290814301,0.60971406,109230.0,109220.0,0.00132577]
[1748290817057,0.63718806,109230.0,109220.0,0.00132577]
[1748290818273,1.33178413,109230.0,109220.0,0.00132577]
[1748290818494,1.63749896,109230.0,109220.0,0.00132577]
[1748290818776,0.82978835,109210.0,109200.0,0.02744013]
[1748290819001,1.33351627,109210.0,109200.0,0.02744013]
[1748290819491,1.36100027,109210.0,109200.0,0.002]
[1748290819925,0.81345808,109210.0,109200.0,0.002]
[1748290820146,0.81545808,109210.0,109200.0,0.002]
[1748290820325,1.36600027,109210.0,109200.0,0.002]
[1748290821490,1.37950019,109210.0,109200.0,0.002]
[1748290822190,1.67120019,109210.0,109200.0,0.002]
[1748290822923,1.66620019,109210.0,109200.0,0.002]
[1748290823147,1.38150019,109210.0,109200.0,0.002]
[1748290825796,1.41249567,109210.0,109200.0,0.002]
[1748290826597,0.20148305,109190.0,109180.0,0.75376652]
[1748290826849,0.43746861,109190.0,109180.0,0.75376652]
[1748290827044,0.43746861,109190.0,109180.0,0.20622433]
[1748290827873,0.43746861,109190.0,109180.0,0.20672154]
[1748290829611,0.50392041,109190.0,109180.0,0.20672154]
[1748290830039,0.53492041,109190.0,109180.0,0.20672154]
[1748290830676,0.50392041,109190.0,109180.0,0.20672154]
[1748290831525,0.51299035,109190.0,109180.0,0.20672154]
[1748290832682,0.44653855,109190.0,109180.0,0.20672154]
[1748290833836,0.44653855,109190.0,109180.0,0.75426373]
[1748290835707,0.44653855,109190.0,109180.0,0.20672154]
[1748290838008,0.44657855,109190.0,109180.0,0.20672154]
[1748290841385,0.60025855,109190.0,109180.0,0.20672154]
[1748290842622,0.60025855,109190.0,109180.0,0.20594954]
[1748290846982,0.68439934,109190.0,109180.0,0.20594954]
[1748290849592,0.60025855,109190.0,109180.0,0.20594954]
[1748290850217,0.59118861,109190.0,109180.0,0.20594954]
[1748290856048,0.60728861,109190.0,109180.0,0.20594954]
[1748290858299,0.62308861,109190.0,109180.0,0.20594954]
[1748290858521,1.1706308,109190.0,109180.0,0.20594954]
[1748290858781,1.28763931,109190.0,109180.0,0.20594954]
[1748290859211,1.31218016,109190.0,109180.0,0.20594954]
[1748290861969,1.37539888,109190.0,109180.0,0.20594954]
[1748290862182,0.82785669,109190.0,109180.0,0.20594954]
[1748290862418,0.41363433,109190.0,109180.0,0.20594954]
[1748290862632,0.71379433,109190.0,109180.0,0.18448599]
[1748290865368,0.68151498,109190.0,109180.0,0.18448599]
[1748290865908,1.25359802,109190.0,109180.0,0.18448599]
[1748290866136,1.34311953,109190.0,109180.0,0.18448599]
[1748290867158,0.79557734,109190.0,109180.0,0.18448599]
[1748290871301,0.49541734,109190.0,109180.0,0.18448599]
[1748290871522,0.68143498,109190.0,109180.0,0.18448599]
[1748290873803,0.64953498,109190.0,109180.0,0.18448599]
[1748290874025,0.50305498,109190.0,109180.0,0.18448599]
[1748290874267,0.64953498,109190.0,109180.0,0.18448599]
[1748290874449,0.66493498,109190.0,109180.0,0.18448599]
[1748290874663,0.68023498,109190.0,109180.0,0.18448599]
[1748290882872,0.68223498,109190.0,109180.0,0.18448599]
[1748290883752,0.68423498,109190.0,109180.0,0.18448599]
[1748290884374,0.68423498,109190.0,109180.0,0.163023]
[1748290889530,0.66893498,109190.0,109180.0,0.163023]
[1748290891778,0.68403498,109190.0,109180.0,0.163023]
[1748290891980,0.77355649,109190.0,109180.0,0.163023]
[1748290896832,1.34563953,109190.0,109180.0,0.163023]
[1748290897250,0.79809734,109190.0,109180.0,0.163023]
[1748290898120,1.20979051,109190.0,109180.0,0.163023]
[1748290900116,1.34705636,109190.0,109180.0,0.163023]
[1748290901142,1.38906395,109190.0,109180.0,0.163023]
[1748290901678,1.48544395,109190.0,109180.0,0.163023]
[1748290901867,1.38906395,109190.0,109180.0,0.163023]
[1748290903510,1.42906395,109190.0,109180.0,0.163023]
[1748290903711,1.45479896,109190.0,109180.0,0.163023]
[1748290904392,0.93609683,109170.0,109160.0,0.002]
[1748290904610,1.2616439,109170.0,109160.0,0.002]
[1748290904846,1.2616439,109170.0,109160.0,0.00214917]
[1748290905064,1.4629669,109170.0,109160.0,0.00214917]
[1748290905274,1.4904639,109170.0,109160.0,0.00214917]
[1748290906147,0.94150488,109170.0,109160.0,0.00214917]
[1748290906382,1.4904639,109170.0,109160.0,0.00214917]
[1748290906610,1.4914639,109170.0,109160.0,0.00214917]
[1748290907455,1.4924639,109170.0,109160.0,0.00214917]
[1748290909478,1.52340327,109170.0,109160.0,0.00214917]
[1748290911973,1.61978327,109170.0,109160.0,0.00214917]
[1748290912180,1.52340327,109170.0,109160.0,0.00214917]
[1748290914993,1.00208425,109170.0,109160.0,0.00214917]
[1748290915203,0.85556425,109170.0,109160.0,0.00214917]
[1748290915427,1.15564425,109170.0,109160.0,0.00214917]
[1748290915777,1.18734425,109170.0,109160.0,0.00214917]
[1748290916002,1.13734425,109170.0,109160.0,0.00214917]
[1748290916427,1.68630327,109170.0,109160.0,0.00214917]
[1748290916788,1.7186331,109170.0,109160.0,0.00214917]
[1748290918787,1.68630327,109170.0,109160.0,0.00214917]
[1748290919465,0.20155689,109150.0,109140.0,0.58185902]
[1748290919670,0.4811014,109150.0,109140.0,0.58200824]
[1748290920169,0.5085964,109150.0,109140.0,0.58200824]
[1748290920970,0.5085964,109150.0,109140.0,0.58400824]
[1748290921160,0.5085964,109150.0,109140.0,0.58600824]
[1748290921825,0.47422112,109150.0,109140.0,0.58600824]
[1748290923070,0.32770112,109150.0,109140.0,0.58600824]
[1748290923279,0.31859745,109150.0,109140.0,0.58600824]
[1748290923481,0.46511745,109150.0,109140.0,0.58600824]
[1748290924154,0.31859745,109150.0,109140.0,0.58600824]
[1748290924813,0.46511745,109150.0,109140.0,0.58600824]
[1748290925279,0.31859745,109150.0,109140.0,0.58600824]
[1748290925479,0.46511745,109150.0,109140.0,0.58600824]
[1748290926823,0.5331831,109150.0,109140.0,0.58600824]
[1748290927243,0.54219263,109150.0,109140.0,0.58600824]
[1748290927673,0.47412698,109150.0,109140.0,0.58600824]
[1748290929360,0.47412698,109150.0,109140.0,0.03704922]
[1748290929782,0.47412698,109150.0,109140.0,0.58600824]
[1748290930251,0.31859745,109150.0,109140.0,0.58600824]
[1748290930493,0.46511745,109150.0,109140.0,0.58600824]
[1748290930947,0.29110245,109150.0,109140.0,0.58600824]
[1748290931192,0.43762245,109150.0,109140.0,0.58600824]
[1748290933098,0.29110245,109150.0,109140.0,0.58600824]